[Event "December 5 Late 2023"]
[Site "https://www.chess.com"]
[Date "2023.12.05"]
[Round "7"]
[White "Bochnicka, Vladimir"]
[Black "Przybylski, Wojciech"]
[Result "0-1"]
[Board "79"]
[TimeControl "180+1"]
[WhiteFideId "14943450"]
[BlackFideId "1117599"]
[WhiteElo "2410"]
[BlackElo "2552"]
[WhiteTeam "SVK"]
[BlackTeam "POL"]
[WhiteClock "0:00:05"]
[BlackClock "0:00:05"]

1. e4 {[%clk 0:03:00]}  c5 {[%clk 0:02:57]} 2. Nf3 {[%clk 0:03:01]}  e6 {[%clk 0:02:57]} 3. g3 {[%clk 0:03:01]}  d6 {[%clk 0:02:56]} 4. Bg2 {[%clk 0:03:00]}  Nf6 {[%clk 0:02:56]} 5. Nc3 {[%clk 0:02:59]}  Be7 {[%clk 0:02:56]} 6. O-O {[%clk 0:02:59]}  O-O {[%clk 0:02:56]} 7. d4 {[%clk 0:02:59]}  cxd4 {[%clk 0:02:56]} 8. Nxd4 {[%clk 0:02:57]}  Nc6 {[%clk 0:02:55]} 9. Be3 {[%clk 0:02:57]}  Bd7 {[%clk 0:02:54]} 10. h3 {[%clk 0:02:58]}  a6 {[%clk 0:02:53]} 11. Qe2 {[%clk 0:02:53]}  Nxd4 {[%clk 0:02:51]} 12. Bxd4 {[%clk 0:02:53]}  Bc6 {[%clk 0:02:52]} 13. Rad1 {[%clk 0:02:53]}  Qc7 {[%clk 0:02:51]} 14. e5 {[%clk 0:02:50]}  dxe5 {[%clk 0:02:47]} 15. Bxe5 {[%clk 0:02:50]}  Qb6 {[%clk 0:02:46]} 16. Bxc6 {[%clk 0:02:40]}  Qxc6 {[%clk 0:02:46]} 17. Rd3 {[%clk 0:02:25]}  Rfd8 {[%clk 0:02:44]} 18. Rfd1 {[%clk 0:02:24]}  Rxd3 {[%clk 0:02:44]} 19. Rxd3 {[%clk 0:02:23]}  Rc8 {[%clk 0:02:40]} 20. Qd1 {[%clk 0:01:57]}  h6 {[%clk 0:02:38]} 21. h4 {[%clk 0:01:31]}  b5 {[%clk 0:02:37]} 22. a3 {[%clk 0:01:30]}  Kh7 {[%clk 0:02:34]} 23. Qf3 {[%clk 0:01:23]}  Qxf3 {[%clk 0:02:18]} 24. Rxf3 {[%clk 0:01:24]}  h5 {[%clk 0:02:16]} 25. Rd3 {[%clk 0:01:23]}  Rc6 {[%clk 0:02:08]} 26. Rd2 {[%clk 0:01:22]}  Kg6 {[%clk 0:02:06]} 27. Ne2 {[%clk 0:01:21]}  Nd5 {[%clk 0:01:58]} 28. c3 {[%clk 0:01:13]}  Nb6 {[%clk 0:01:51]} 29. Rd4 {[%clk 0:00:56]}  f6 {[%clk 0:01:46]} 30. Bb8 {[%clk 0:00:50]}  Nc4 {[%clk 0:01:25]} 31. Rd7 {[%clk 0:00:39]}  Kf7 {[%clk 0:01:21]} 32. b3 {[%clk 0:00:30]}  Nxa3 {[%clk 0:01:12]} 33. Nd4 {[%clk 0:00:30]}  Rb6 {[%clk 0:00:34]} 34. Ba7 {[%clk 0:00:29]}  Rd6 {[%clk 0:00:34]} 35. Rc7 {[%clk 0:00:23]}  Ke8 {[%clk 0:00:30]} 36. Bc5 {[%clk 0:00:18]}  Rd7 {[%clk 0:00:29]} 37. Rc8+ {[%clk 0:00:15]}  Kf7 {[%clk 0:00:29]} 38. Bxe7 {[%clk 0:00:10]}  Kxe7 {[%clk 0:00:25]} 39. Rc6 {[%clk 0:00:11]}  Nb1 {[%clk 0:00:21]} 40. Rxe6+ {[%clk 0:00:10]}  Kf7 {[%clk 0:00:21]} 41. Rc6 {[%clk 0:00:06]}  Nxc3 {[%clk 0:00:21]} 42. Rxc3 {[%clk 0:00:05]}  Rxd4 {[%clk 0:00:21]} 43. Rc7+ {[%clk 0:00:06]}  Kg6 {[%clk 0:00:21]} 44. Rc6 {[%clk 0:00:06]}  Rb4 {[%clk 0:00:20]} 45. Rxa6 {[%clk 0:00:07]}  Rxb3 {[%clk 0:00:21]} 46. Kg2 {[%clk 0:00:07]}  Kf5 {[%clk 0:00:20]} 47. Rb6 {[%clk 0:00:08]}  g6 {[%clk 0:00:20]} 48. Rb8 {[%clk 0:00:08]}  Ke6 {[%clk 0:00:20]} 49. Kf1 {[%clk 0:00:07]}  Rb2 {[%clk 0:00:19]} 50. Kg2 {[%clk 0:00:07]}  Kf5 {[%clk 0:00:19]} 51. Kf3 {[%clk 0:00:07]}  Ke5 {[%clk 0:00:19]} 52. Rb6 {[%clk 0:00:06]}  Rb3+ {[%clk 0:00:19]} 53. Kg2 {[%clk 0:00:07]}  Kf5 {[%clk 0:00:18]} 54. Kf1 {[%clk 0:00:07]}  g5 {[%clk 0:00:19]} 55. hxg5 {[%clk 0:00:03]}  fxg5 {[%clk 0:00:19]} 56. Kg2 {[%clk 0:00:04]}  Kg4 {[%clk 0:00:17]} 57. Rb8 {[%clk 0:00:03]}  Rb2 {[%clk 0:00:15]} 58. Rb7 {[%clk 0:00:03]}  Kf5 {[%clk 0:00:15]} 59. Rb6 {[%clk 0:00:03]}  Ke5 {[%clk 0:00:14]} 60. Rb8 {[%clk 0:00:04]}  b4 {[%clk 0:00:13]} 61. Rg8 {[%clk 0:00:04]}  Kf5 {[%clk 0:00:14]} 62. Ra8 {[%clk 0:00:04]}  Ke4 {[%clk 0:00:11]} 63. Re8+ {[%clk 0:00:04]}  Kf5 {[%clk 0:00:11]} 64. Rb8 {[%clk 0:00:04]}  Rb1 {[%clk 0:00:11]} 65. Rb5+ {[%clk 0:00:05]}  Kf6 {[%clk 0:00:10]} 66. Rb6+ {[%clk 0:00:04]}  Ke5 {[%clk 0:00:10]} 67. Rb5+ {[%clk 0:00:05]}  Kd4 {[%clk 0:00:09]} 68. Rxg5 {[%clk 0:00:03]}  b3 {[%clk 0:00:09]} 69. Rxh5 {[%clk 0:00:03]}  Rd1 {[%clk 0:00:06]} 70. Rb5 {[%clk 0:00:03]}  Kc3 {[%clk 0:00:07]} 71. g4 {[%clk 0:00:02]}  b2 {[%clk 0:00:06]} 72. Kg3 {[%clk 0:00:02]}  b1=Q {[%clk 0:00:04]} 73. Rxb1 {[%clk 0:00:02]}  Rxb1 {[%clk 0:00:04]} 74. g5 {[%clk 0:00:03]}  Kd4 {[%clk 0:00:04]} 75. f4 {[%clk 0:00:03]}  Ke4 {[%clk 0:00:04]} 76. Kg4 {[%clk 0:00:04]}  Rg1+ {[%clk 0:00:04]} 77. Kh5 {[%clk 0:00:05]}  Kf5 {[%clk 0:00:05]} 78. g6 {[%clk 0:00:05]}  Rh1# {[%clk 0:00:05]} 0-1

[Event "December 5 Late 2023"]
[Site "https://www.chess.com"]
[Date "2023.12.05"]
[Round "7"]
[White "Sanchez Alvares, Kelvin Antonio"]
[Black "Marcziter, Dmitrii"]
[Result "1-0"]
[Board "82"]
[TimeControl "180+1"]
[WhiteFideId "3906680"]
[BlackFideId "13900765"]
[WhiteElo "2526"]
[BlackElo "2393"]
[WhiteTeam "VEN"]
[BlackTeam "GER"]
[WhiteClock "0:00:02"]
[BlackClock "0:00:00"]

1. e4 {[%clk 0:03:00]}  c5 {[%clk 0:02:59]} 2. Nf3 {[%clk 0:02:57]}  a6 {[%clk 0:02:58]} 3. c4 {[%clk 0:02:56]}  e6 {[%clk 0:02:58]} 4. Nc3 {[%clk 0:02:56]}  Qc7 {[%clk 0:02:58]} 5. d4 {[%clk 0:02:56]}  cxd4 {[%clk 0:02:59]} 6. Nxd4 {[%clk 0:02:55]}  Nf6 {[%clk 0:02:59]} 7. f3 {[%clk 0:02:54]}  b6 {[%clk 0:03:00]} 8. Be3 {[%clk 0:02:54]}  Bb7 {[%clk 0:03:00]} 9. Qd2 {[%clk 0:02:54]}  Nc6 {[%clk 0:03:00]} 10. Be2 {[%clk 0:02:54]}  Ne5 {[%clk 0:03:00]} 11. Rc1 {[%clk 0:02:52]}  Ng6 {[%clk 0:03:00]} 12. Kd1 {[%clk 0:02:35]}  Rc8 {[%clk 0:02:55]} 13. Kc2 {[%clk 0:02:28]}  Be7 {[%clk 0:02:38]} 14. Kb1 {[%clk 0:02:25]}  O-O {[%clk 0:02:37]} 15. h4 {[%clk 0:02:21]}  Rfd8 {[%clk 0:02:30]} 16. Nb3 {[%clk 0:02:14]}  Bc5 {[%clk 0:02:09]} 17. Na4 {[%clk 0:02:03]}  Bxe3 {[%clk 0:02:03]} 18. Qxe3 {[%clk 0:02:02]}  Rb8 {[%clk 0:01:52]} 19. h5 {[%clk 0:01:55]}  Nf4 {[%clk 0:01:48]} 20. g4 {[%clk 0:01:41]}  Ne8 {[%clk 0:01:31]} 21. e5 {[%clk 0:01:28]}  Nxe2 {[%clk 0:01:29]} 22. Qxe2 {[%clk 0:01:26]}  Qc6 {[%clk 0:01:28]} 23. Nc3 {[%clk 0:01:12]}  Qxf3 {[%clk 0:01:26]} 24. Qh2 {[%clk 0:01:09]}  Qxg4 {[%clk 0:01:17]} 25. Rhg1 {[%clk 0:01:07]}  Qf5+ {[%clk 0:01:16]} 26. Ka1 {[%clk 0:01:06]}  d6 {[%clk 0:00:49]} 27. Rcf1 {[%clk 0:00:56]}  Qxe5 {[%clk 0:00:46]} 28. Qf2 {[%clk 0:00:51]}  f5 {[%clk 0:00:42]} 29. Re1 {[%clk 0:00:42]}  Qf6 {[%clk 0:00:37]} 30. Nd4 {[%clk 0:00:41]}  Nc7 {[%clk 0:00:29]} 31. Nde2 {[%clk 0:00:18]}  b5 {[%clk 0:00:28]} 32. Nf4 {[%clk 0:00:16]}  bxc4 {[%clk 0:00:25]} 33. h6 {[%clk 0:00:16]}  g6 {[%clk 0:00:23]} 34. Nh5 {[%clk 0:00:15]}  Qf7 {[%clk 0:00:18]} 35. Qh4 {[%clk 0:00:15]}  Rf8 {[%clk 0:00:17]} 36. Qg5 {[%clk 0:00:15]}  Kh8 {[%clk 0:00:12]} 37. Ng7 {[%clk 0:00:10]}  Qf6 {[%clk 0:00:10]} 38. Qd2 {[%clk 0:00:10]}  Nd5 {[%clk 0:00:09]} 39. Ne2 {[%clk 0:00:09]}  Bc6 {[%clk 0:00:07]} 40. Nd4 {[%clk 0:00:09]}  Bd7 {[%clk 0:00:07]} 41. Ndxe6 {[%clk 0:00:08]}  Rfc8 {[%clk 0:00:05]} 42. Nd4 {[%clk 0:00:06]}  c3 {[%clk 0:00:04]} 43. bxc3 {[%clk 0:00:05]}  Rc4 {[%clk 0:00:02]} 44. Rg3 {[%clk 0:00:04]}  Rbc8 {[%clk 0:00:00]} 45. Ne2 {[%clk 0:00:02]} 1-0

[Event "December 5 Late 2023"]
[Site "https://www.chess.com"]
[Date "2023.12.05"]
[Round "7"]
[White "Alvarado, Carlos"]
[Black "Tikhonov, Viacheslav"]
[Result "1/2-1/2"]
[Board "83"]
[TimeControl "180+1"]
[WhiteFideId "3800555"]
[BlackFideId "44196407"]
[WhiteElo "2394"]
[BlackElo "2526"]
[WhiteTeam "PER"]
[BlackTeam "RUS"]
[WhiteClock "0:00:06"]
[BlackClock "0:00:02"]

1. d4 {[%clk 0:03:00]}  Nf6 {[%clk 0:02:59]} 2. Nf3 {[%clk 0:03:00]}  g6 {[%clk 0:03:00]} 3. Bg5 {[%clk 0:03:00]}  Bg7 {[%clk 0:03:00]} 4. Nbd2 {[%clk 0:03:01]}  d5 {[%clk 0:02:59]} 5. c3 {[%clk 0:03:01]}  O-O {[%clk 0:02:59]} 6. e3 {[%clk 0:03:01]}  b6 {[%clk 0:02:58]} 7. b4 {[%clk 0:03:01]}  a5 {[%clk 0:02:56]} 8. a3 {[%clk 0:03:00]}  Bf5 {[%clk 0:02:51]} 9. Be2 {[%clk 0:03:00]}  Ne4 {[%clk 0:02:44]} 10. Nxe4 {[%clk 0:02:59]}  Bxe4 {[%clk 0:02:45]} 11. O-O {[%clk 0:02:58]}  Nd7 {[%clk 0:02:40]} 12. Bb5 {[%clk 0:02:55]}  Nf6 {[%clk 0:02:39]} 13. Ne5 {[%clk 0:02:50]}  Bf5 {[%clk 0:02:04]} 14. Nc6 {[%clk 0:02:40]}  Qd7 {[%clk 0:02:02]} 15. a4 {[%clk 0:02:35]}  Qe6 {[%clk 0:01:34]} 16. Rc1 {[%clk 0:02:24]}  h6 {[%clk 0:01:30]} 17. Bh4 {[%clk 0:02:23]}  g5 {[%clk 0:01:29]} 18. Bg3 {[%clk 0:02:23]}  Rfc8 {[%clk 0:01:30]} 19. Be5 {[%clk 0:02:20]}  Ne4 {[%clk 0:01:26]} 20. Bxg7 {[%clk 0:02:13]}  Kxg7 {[%clk 0:01:27]} 21. bxa5 {[%clk 0:02:00]}  bxa5 {[%clk 0:01:26]} 22. g4 {[%clk 0:01:27]}  Bxg4 {[%clk 0:01:11]} 23. f3 {[%clk 0:01:27]}  Bh5 {[%clk 0:01:12]} 24. c4 {[%clk 0:01:20]}  Nd6 {[%clk 0:00:56]} 25. Ne5 {[%clk 0:01:03]}  c6 {[%clk 0:00:20]} 26. cxd5 {[%clk 0:01:01]}  cxd5 {[%clk 0:00:14]} 27. Rxc8 {[%clk 0:00:43]}  Qxc8 {[%clk 0:00:15]} 28. Qb3 {[%clk 0:00:29]}  f6 {[%clk 0:00:12]} 29. Nc6 {[%clk 0:00:22]}  Qe6 {[%clk 0:00:09]} 30. e4 {[%clk 0:00:21]}  Bf7 {[%clk 0:00:05]} 31. exd5 {[%clk 0:00:13]}  Qxd5 {[%clk 0:00:05]} 32. Qxd5 {[%clk 0:00:13]}  Bxd5 {[%clk 0:00:06]} 33. Nxe7 {[%clk 0:00:14]}  Bb3 {[%clk 0:00:03]} 34. Bc6 {[%clk 0:00:11]}  Rb8 {[%clk 0:00:02]} 35. f4 {[%clk 0:00:09]}  Rb4 {[%clk 0:00:03]} 36. fxg5 {[%clk 0:00:09]}  hxg5 {[%clk 0:00:04]} 37. d5 {[%clk 0:00:09]}  Bxa4 {[%clk 0:00:03]} 38. Ra1 {[%clk 0:00:07]}  Rg4+ {[%clk 0:00:03]} 39. Kf2 {[%clk 0:00:07]}  Bxc6 {[%clk 0:00:04]} 40. Nxc6 {[%clk 0:00:08]}  Rc4 {[%clk 0:00:04]} 41. Rxa5 {[%clk 0:00:08]}  Rc2+ {[%clk 0:00:05]} 42. Ke3 {[%clk 0:00:08]}  Nc4+ {[%clk 0:00:05]} 43. Kd3 {[%clk 0:00:08]}  Nxa5 {[%clk 0:00:06]} 44. Kxc2 {[%clk 0:00:07]}  Nb7 {[%clk 0:00:04]} 45. Kd3 {[%clk 0:00:07]}  Kf7 {[%clk 0:00:04]} 46. Kd4 {[%clk 0:00:07]}  Ke8 {[%clk 0:00:04]} 47. Nb4 {[%clk 0:00:07]}  Kd7 {[%clk 0:00:04]} 48. Nd3 {[%clk 0:00:08]}  Kd6 {[%clk 0:00:04]} 49. Nf2 {[%clk 0:00:08]}  Nc5 {[%clk 0:00:02]} 50. h3 {[%clk 0:00:07]}  Nd7 {[%clk 0:00:02]} 51. Ne4+ {[%clk 0:00:08]}  Ke7 {[%clk 0:00:03]} 52. Ng3 {[%clk 0:00:06]}  Kf7 {[%clk 0:00:01]} 53. Nf5 {[%clk 0:00:06]}  Kg6 {[%clk 0:00:02]} 54. Ne7+ {[%clk 0:00:06]}  Kh5 {[%clk 0:00:03]} 55. Nc6 {[%clk 0:00:07]}  Kh4 {[%clk 0:00:03]} 56. d6 {[%clk 0:00:08]}  Kxh3 {[%clk 0:00:03]} 57. Kd5 {[%clk 0:00:09]}  g4 {[%clk 0:00:03]} 58. Ke6 {[%clk 0:00:10]}  Nb6 {[%clk 0:00:02]} 59. Kxf6 {[%clk 0:00:10]}  g3 {[%clk 0:00:03]} 60. Nd4 {[%clk 0:00:10]}  g2 {[%clk 0:00:03]} 61. Ne2 {[%clk 0:00:10]}  Kg4 {[%clk 0:00:03]} 62. Ke7 {[%clk 0:00:08]}  Kf3 {[%clk 0:00:04]} 63. Ng1+ {[%clk 0:00:09]}  Kf2 {[%clk 0:00:04]} 64. Nh3+ {[%clk 0:00:09]}  Kg3 {[%clk 0:00:05]} 65. Ng1 {[%clk 0:00:09]}  Nd5+ {[%clk 0:00:05]} 66. Kf7 {[%clk 0:00:09]}  Kf2 {[%clk 0:00:02]} 67. Nh3+ {[%clk 0:00:09]}  Kg3 {[%clk 0:00:02]} 68. Ng1 {[%clk 0:00:09]}  Nf4 {[%clk 0:00:02]} 69. d7 {[%clk 0:00:08]}  Kh2 {[%clk 0:00:03]} 70. Nf3+ {[%clk 0:00:08]}  Kg3 {[%clk 0:00:03]} 71. Ng1 {[%clk 0:00:08]}  Kf2 {[%clk 0:00:03]} 72. d8=Q {[%clk 0:00:07]}  Kxg1 {[%clk 0:00:04]} 73. Qg5 {[%clk 0:00:06]}  Ne2 {[%clk 0:00:02]} 74. Qxg2+ {[%clk 0:00:06]}  Kxg2 {[%clk 0:00:02]} 1/2-1/2

[Event "December 5 Late 2023"]
[Site "https://www.chess.com"]
[Date "2023.12.05"]
[Round "7"]
[White "Pasti, Aron"]
[Black "Gutkin, Ilya"]
[Result "1-0"]
[Board "86"]
[TimeControl "180+1"]
[WhiteFideId "785857"]
[BlackFideId "16203470"]
[WhiteElo "2511"]
[BlackElo "2373"]
[WhiteTeam "HUN"]
[BlackTeam "GER"]
[WhiteClock "0:00:03"]
[BlackClock "0:00:02"]

1. e4 {[%clk 0:03:00]}  e5 {[%clk 0:03:00]} 2. Nf3 {[%clk 0:02:58]}  Nc6 {[%clk 0:03:00]} 3. Bb5 {[%clk 0:02:59]}  Nf6 {[%clk 0:03:01]} 4. d3 {[%clk 0:02:59]}  Bc5 {[%clk 0:03:00]} 5. c3 {[%clk 0:02:59]}  d6 {[%clk 0:02:52]} 6. O-O {[%clk 0:02:57]}  O-O {[%clk 0:02:52]} 7. Bg5 {[%clk 0:02:51]}  Bg4 {[%clk 0:02:48]} 8. h3 {[%clk 0:02:50]}  Bh5 {[%clk 0:02:48]} 9. g4 {[%clk 0:02:45]}  Bg6 {[%clk 0:02:48]} 10. Nbd2 {[%clk 0:02:45]}  Qe7 {[%clk 0:02:42]} 11. Re1 {[%clk 0:02:41]}  a6 {[%clk 0:02:35]} 12. Bxc6 {[%clk 0:02:41]}  bxc6 {[%clk 0:02:35]} 13. Nc4 {[%clk 0:02:32]}  Qe6 {[%clk 0:02:29]} 14. Ne3 {[%clk 0:02:25]}  Bxe3 {[%clk 0:02:25]} 15. Rxe3 {[%clk 0:02:26]}  Nd7 {[%clk 0:02:23]} 16. Re2 {[%clk 0:02:15]}  h5 {[%clk 0:02:18]} 17. Nh2 {[%clk 0:02:11]}  f6 {[%clk 0:02:13]} 18. Be3 {[%clk 0:02:10]}  c5 {[%clk 0:01:52]} 19. f3 {[%clk 0:02:01]}  Rfb8 {[%clk 0:01:40]} 20. Nf1 {[%clk 0:02:00]}  hxg4 {[%clk 0:01:36]} 21. hxg4 {[%clk 0:02:00]}  a5 {[%clk 0:01:24]} 22. Kg2 {[%clk 0:01:52]}  Rb7 {[%clk 0:01:10]} 23. Ng3 {[%clk 0:01:44]}  Rab8 {[%clk 0:01:10]} 24. Qc1 {[%clk 0:01:44]}  c4 {[%clk 0:01:04]} 25. d4 {[%clk 0:01:40]}  d5 {[%clk 0:01:00]} 26. dxe5 {[%clk 0:01:24]}  dxe4 {[%clk 0:00:54]} 27. f4 {[%clk 0:01:23]}  Qxg4 {[%clk 0:00:51]} 28. Rf2 {[%clk 0:01:17]}  fxe5 {[%clk 0:00:22]} 29. Rb1 {[%clk 0:01:13]}  exf4 {[%clk 0:00:16]} 30. Rxf4 {[%clk 0:01:14]}  Qe6 {[%clk 0:00:15]} 31. Ne2 {[%clk 0:01:03]}  Rf8 {[%clk 0:00:12]} 32. Nd4 {[%clk 0:01:02]}  Qe5 {[%clk 0:00:11]} 33. Rxf8+ {[%clk 0:00:46]}  Nxf8 {[%clk 0:00:12]} 34. Qf1 {[%clk 0:00:46]}  Rb6 {[%clk 0:00:09]} 35. Qe2 {[%clk 0:00:26]}  Rf6 {[%clk 0:00:08]} 36. Rh1 {[%clk 0:00:23]}  Ne6 {[%clk 0:00:07]} 37. Qxc4 {[%clk 0:00:21]}  Qc5 {[%clk 0:00:03]} 38. Qxc5 {[%clk 0:00:04]}  Nxc5 {[%clk 0:00:04]} 39. Rh3 {[%clk 0:00:01]}  Nd3 {[%clk 0:00:04]} 40. b3 {[%clk 0:00:01]}  c5 {[%clk 0:00:03]} 41. Ne2 {[%clk 0:00:01]}  Ne1+ {[%clk 0:00:01]} 42. Kg1 {[%clk 0:00:02]}  Nf3+ {[%clk 0:00:01]} 43. Kg2 {[%clk 0:00:02]}  Nd2 {[%clk 0:00:01]} 44. Nf4 {[%clk 0:00:02]}  Bf5 {[%clk 0:00:01]} 45. Rg3 {[%clk 0:00:02]}  Nf3 {[%clk 0:00:01]} 46. Kf2 {[%clk 0:00:01]}  Ne1 {[%clk 0:00:01]} 47. Kxe1 {[%clk 0:00:01]}  Rd6 {[%clk 0:00:02]} 48. Rg2 {[%clk 0:00:02]}  Kf7 {[%clk 0:00:02]} 49. Rd2 {[%clk 0:00:02]}  Rh6 {[%clk 0:00:02]} 50. Kf2 {[%clk 0:00:02]}  Rh1 {[%clk 0:00:02]} 51. Ng2 {[%clk 0:00:02]}  Ra1 {[%clk 0:00:02]} 52. Nh4 {[%clk 0:00:01]}  Be6 {[%clk 0:00:02]} 53. Ng2 {[%clk 0:00:01]}  a4 {[%clk 0:00:03]} 54. Nf4 {[%clk 0:00:01]}  axb3 {[%clk 0:00:03]} 55. Nxe6 {[%clk 0:00:02]}  Rxa2 {[%clk 0:00:01]} 56. Ng5+ {[%clk 0:00:02]}  Kf6 {[%clk 0:00:01]} 57. Nxe4+ {[%clk 0:00:03]}  Ke5 {[%clk 0:00:02]} 58. Kf3 {[%clk 0:00:01]}  Rxd2 {[%clk 0:00:02]} 59. Nxd2 {[%clk 0:00:02]}  b2 {[%clk 0:00:02]} 60. Nb1 {[%clk 0:00:03]}  Kd5 {[%clk 0:00:02]} 61. Ke2 {[%clk 0:00:03]}  Kc4 {[%clk 0:00:03]} 62. Kd2 {[%clk 0:00:04]}  Kb3 {[%clk 0:00:03]} 63. Bg5 {[%clk 0:00:04]}  c4 {[%clk 0:00:04]} 64. Bf4 {[%clk 0:00:04]}  g6 {[%clk 0:00:03]} 65. Bg5 {[%clk 0:00:04]}  Ka2 {[%clk 0:00:04]} 66. Kc2 {[%clk 0:00:03]}  Ka1 {[%clk 0:00:04]} 67. Bf4 {[%clk 0:00:03]}  Ka2 {[%clk 0:00:05]} 68. Nd2 {[%clk 0:00:03]}  Ka1 {[%clk 0:00:04]} 69. Bg5 {[%clk 0:00:03]}  Ka2 {[%clk 0:00:05]} 70. Bh6 {[%clk 0:00:04]}  Ka1 {[%clk 0:00:04]} 71. Bf8 {[%clk 0:00:04]}  g5 {[%clk 0:00:03]} 72. Ba3 {[%clk 0:00:04]}  g4 {[%clk 0:00:02]} 73. Bxb2+ {[%clk 0:00:04]}  Ka2 {[%clk 0:00:03]} 74. Nf1 {[%clk 0:00:01]}  g3 {[%clk 0:00:04]} 75. Ne3 {[%clk 0:00:01]}  g2 {[%clk 0:00:04]} 76. Nd5 {[%clk 0:00:02]}  g1=Q {[%clk 0:00:02]} 77. Nb4# {[%clk 0:00:03]} 1-0

[Event "December 5 Late 2023"]
[Site "https://www.chess.com"]
[Date "2023.12.05"]
[Round "7"]
[White "Silvestre, Christian"]
[Black "Calin, Alexandru"]
[Result "0-1"]
[Board "89"]
[TimeControl "180+1"]
[WhiteFideId "30956269"]
[BlackFideId "1222961"]
[WhiteElo "2335"]
[BlackElo "2508"]
[WhiteTeam "USA"]
[BlackTeam "ROU"]
[WhiteClock "0:00:02"]
[BlackClock "0:00:06"]

1. e4 {[%clk 0:03:00]}  g6 {[%clk 0:02:55]} 2. c4 {[%clk 0:02:58]}  Bg7 {[%clk 0:02:54]} 3. Nf3 {[%clk 0:02:58]}  c5 {[%clk 0:02:54]} 4. g3 {[%clk 0:02:58]}  Nc6 {[%clk 0:02:53]} 5. Bg2 {[%clk 0:02:59]}  e6 {[%clk 0:02:53]} 6. O-O {[%clk 0:02:59]}  Nge7 {[%clk 0:02:54]} 7. d3 {[%clk 0:02:59]}  O-O {[%clk 0:02:54]} 8. Nc3 {[%clk 0:02:59]}  a6 {[%clk 0:02:51]} 9. Rb1 {[%clk 0:02:58]}  Rb8 {[%clk 0:02:51]} 10. a3 {[%clk 0:02:57]}  b5 {[%clk 0:02:51]} 11. Be3 {[%clk 0:02:52]}  d6 {[%clk 0:02:50]} 12. cxb5 {[%clk 0:02:48]}  axb5 {[%clk 0:02:50]} 13. d4 {[%clk 0:02:46]}  b4 {[%clk 0:02:51]} 14. axb4 {[%clk 0:02:43]}  cxb4 {[%clk 0:02:50]} 15. Ne2 {[%clk 0:02:34]}  d5 {[%clk 0:02:48]} 16. e5 {[%clk 0:02:25]}  Ba6 {[%clk 0:02:47]} 17. Qd2 {[%clk 0:02:20]}  Nf5 {[%clk 0:02:29]} 18. Rfc1 {[%clk 0:02:18]}  Qb6 {[%clk 0:02:22]} 19. Nf4 {[%clk 0:01:57]}  Na5 {[%clk 0:02:06]} 20. b3 {[%clk 0:01:56]}  Rfc8 {[%clk 0:02:01]} 21. Rc5 {[%clk 0:01:53]}  Rxc5 {[%clk 0:01:45]} 22. dxc5 {[%clk 0:01:50]}  Qc7 {[%clk 0:01:46]} 23. Nd3 {[%clk 0:01:30]}  Nxe3 {[%clk 0:01:40]} 24. Qxe3 {[%clk 0:01:23]}  Bxd3 {[%clk 0:01:40]} 25. Qxd3 {[%clk 0:01:21]}  Qxc5 {[%clk 0:01:40]} 26. Ra1 {[%clk 0:01:12]}  Rc8 {[%clk 0:01:28]} 27. h4 {[%clk 0:00:45]}  Qc3 {[%clk 0:01:27]} 28. Qd1 {[%clk 0:00:26]}  Nxb3 {[%clk 0:01:25]} 29. Rb1 {[%clk 0:00:25]}  Na5 {[%clk 0:01:22]} 30. Ng5 {[%clk 0:00:21]}  h6 {[%clk 0:01:19]} 31. Nxf7 {[%clk 0:00:20]}  Kxf7 {[%clk 0:01:17]} 32. Bxd5 {[%clk 0:00:21]}  exd5 {[%clk 0:01:10]} 33. Qxd5+ {[%clk 0:00:22]}  Kf8 {[%clk 0:01:10]} 34. Qxa5 {[%clk 0:00:20]}  Qxe5 {[%clk 0:01:10]} 35. Qxb4+ {[%clk 0:00:20]}  Kg8 {[%clk 0:01:10]} 36. Qb3+ {[%clk 0:00:17]}  Kh7 {[%clk 0:01:10]} 37. Qf3 {[%clk 0:00:15]}  Qf5 {[%clk 0:01:08]} 38. Qxf5 {[%clk 0:00:15]}  gxf5 {[%clk 0:01:09]} 39. Rb5 {[%clk 0:00:14]}  Kg6 {[%clk 0:01:09]} 40. Kg2 {[%clk 0:00:14]}  Rc2 {[%clk 0:01:08]} 41. Kf3 {[%clk 0:00:13]}  Bd4 {[%clk 0:01:08]} 42. h5+ {[%clk 0:00:03]}  Kg5 {[%clk 0:01:03]} 43. g4 {[%clk 0:00:04]}  Bxf2 {[%clk 0:00:47]} 44. Rxf5+ {[%clk 0:00:03]}  Kh4 {[%clk 0:00:47]} 45. Rf6 {[%clk 0:00:02]}  Bd4 {[%clk 0:00:33]} 46. Rxh6 {[%clk 0:00:03]}  Rf2+ {[%clk 0:00:29]} 47. Ke4 {[%clk 0:00:02]}  Ba7 {[%clk 0:00:27]} 48. Kd5 {[%clk 0:00:02]}  Kxg4 {[%clk 0:00:27]} 49. Rg6+ {[%clk 0:00:03]}  Kxh5 {[%clk 0:00:27]} 50. Rg8 {[%clk 0:00:04]}  Be3 {[%clk 0:00:25]} 51. Kc6 {[%clk 0:00:04]}  Bg5 {[%clk 0:00:24]} 52. Kd5 {[%clk 0:00:05]}  Kg4 {[%clk 0:00:25]} 53. Kc6 {[%clk 0:00:05]}  Rd2 {[%clk 0:00:25]} 54. Kb7 {[%clk 0:00:06]}  Kf5 {[%clk 0:00:26]} 55. Rf8+ {[%clk 0:00:05]}  Bf6 {[%clk 0:00:26]} 56. Rc8 {[%clk 0:00:06]}  Ke6 {[%clk 0:00:26]} 57. Rc6+ {[%clk 0:00:07]}  Ke5 {[%clk 0:00:21]} 58. Rc5+ {[%clk 0:00:07]}  Kd4 {[%clk 0:00:20]} 59. Rc6 {[%clk 0:00:07]}  Be5 {[%clk 0:00:18]} 60. Rb6 {[%clk 0:00:08]}  Kd5 {[%clk 0:00:17]} 61. Rb5+ {[%clk 0:00:08]}  Ke6 {[%clk 0:00:17]} 62. Rb6+ {[%clk 0:00:08]}  Bd6 {[%clk 0:00:18]} 63. Rb5 {[%clk 0:00:08]}  Rc2 {[%clk 0:00:18]} 64. Rb6 {[%clk 0:00:08]}  Rc7+ {[%clk 0:00:18]} 65. Ka6 {[%clk 0:00:08]}  Rh7 {[%clk 0:00:19]} 66. Rb7 {[%clk 0:00:09]}  Rh1 {[%clk 0:00:18]} 67. Rb6 {[%clk 0:00:10]}  Kd5 {[%clk 0:00:16]} 68. Kb7 {[%clk 0:00:09]}  Bc5 {[%clk 0:00:16]} 69. Rg6 {[%clk 0:00:08]}  Rh7+ {[%clk 0:00:17]} 70. Kc8 {[%clk 0:00:08]}  Bd6 {[%clk 0:00:17]} 71. Kd8 {[%clk 0:00:05]}  Kc6 {[%clk 0:00:15]} 72. Ke8 {[%clk 0:00:05]}  Re7+ {[%clk 0:00:14]} 73. Kf8 {[%clk 0:00:05]}  Re1+ {[%clk 0:00:11]} 74. Kg7 {[%clk 0:00:05]}  Kd7 {[%clk 0:00:11]} 75. Kf7 {[%clk 0:00:03]}  Rf1+ {[%clk 0:00:11]} 76. Rf6 {[%clk 0:00:03]}  Rh1 {[%clk 0:00:12]} 77. Rg6 {[%clk 0:00:03]}  Be5 {[%clk 0:00:11]} 78. Kg8 {[%clk 0:00:03]}  Ke7 {[%clk 0:00:08]} 79. Rg4 {[%clk 0:00:02]}  Rh8# {[%clk 0:00:06]} 0-1